bitfinex-derivatives/quotes_SOLF0:USTF0_20250127
["timestamp","ask_amount","ask_price","bid_price","bid_amount"]
[1737942734822,0.03058657,237.79,237.75,0.02756784]
[1737942735018,1.4169,237.86,237.7,2.6636]
[1737942735219,0.02974786,237.79,237.75,0.03104547]
[1737942736826,4.2081,237.77,237.75,0.03104547]
[1737942737128,0.02974786,237.79,237.75,0.03104547]
[1737942737427,4.2079,237.78,237.75,0.03104547]
[1737942737823,4.208,237.77,237.75,0.03104547]
[1737942739930,4.2082,237.76,237.75,0.03104547]
[1737942741521,4.2082,237.76,237.61,2.6424]
[1737942741522,12.65,237.75,237.47,48.493455]
[1737942741723,16.37553704,237.5,237.36,4.0491]
[1737942741923,16.37553704,237.45,237.44,96.84126527]
[1737942742126,16.37553704,237.45,237.42,148.44891091]
[1737942742430,16.37553704,237.45,237.42,79.0800176]
[1737942742623,16.37553704,237.43,237.42,28.06719696]
[1737942742823,16.37553704,237.43,237.35,192.02739257]
[1737942743029,16.37553704,237.36,237.35,178.90189257]
[1737942743226,16.37553704,237.36,237.2,2.6419]
[1737942743431,16.37553704,237.35,237.2,2.6419]
[1737942743825,16.37553704,237.39,237.2,2.6419]
[1737942744024,16.37553704,237.51,237.27,16.37553704]
[1737942744232,16.37553704,237.55,237.41,4.2143]
[1737942744535,3.82,237.65,237.43,26.55465665]
[1737942744933,32.37213255,237.72,237.47,26.55465665]
[1737942745431,142.66875226,237.6,237.57,0.03049577]
[1737942745631,136.24875226,237.6,237.57,0.03049577]
[1737942745831,127.68905226,237.6,237.55,26.55465665]
[1737942746132,103.45781299,237.6,237.58,4.2114]
[1737942746530,0.02951924,237.61,237.58,4.2114]
[1737942746734,0.02951924,237.61,237.55,24.12071136]
[1737942746935,0.02951924,237.61,237.59,4.211]
[1737942748032,0.02951924,237.61,237.59,30.76565665]
[1737942748033,1.924e-05,237.61,237.59,30.76565665]
[1737942748239,1.3922,237.79,237.68,4.2095]
[1737942748936,1.3922,237.79,237.7,4.2092]
[1737942749439,0.03237484,237.77,237.72,0.02686569]
[1737942751638,26.55465665,237.76,237.59,4.2111]
[1737942752041,4.2084,237.75,237.59,26.55465665]
[1737942752239,4.2084,237.75,237.63,4.2104]
[1737942752943,0.0322001,237.71,237.67,0.02734517]
[1737942753243,26.55465665,237.8,237.67,0.02734517]
[1737942753438,1.3087,237.82,237.67,0.02734517]
[1737942753439,0.02753967,237.71,237.67,0.02734517]
[1737942753741,26.55465665,237.76,237.55,26.55465665]
[1737942753940,0.02815127,237.71,237.67,0.0323007]
[1737942754943,26.55465665,237.68,237.47,26.55465665]
[1737942755139,1.3539,237.67,237.51,4.2126]
[1737942755442,26.55465665,237.64,237.43,26.55465665]
[1737942755639,4.2114,237.58,237.49,4.2129]
[1737942755840,32.3013253,237.76,237.56,26.55465665]
[1737942756041,5.74666865,237.76,237.56,26.55465665]
[1737942756341,0.02730736,237.69,237.64,0.02801205]
[1737942756933,0.02730736,237.69,237.63,4.2104]
[1737942757538,0.02730736,237.69,237.6,4.211]
[1737942757739,0.02730736,237.69,237.52,26.55465665]
[1737942757941,26.55465665,237.76,237.56,26.55465665]
[1737942758142,0.03192756,237.63,237.58,0.02900849]
[1737942758338,26.55465665,237.76,237.56,26.55465665]
[1737942758542,0.03214083,237.63,237.58,0.03058104]
[1737942758742,4.2093,237.7,237.56,26.55465665]
[1737942758943,5.74666865,237.78,237.58,0.03092308]
[1737942759142,5.74666865,237.78,237.56,26.55465665]
[1737942759343,5.74666865,237.78,237.65,4.2101]
[1737942759545,0.0288576,237.69,237.65,0.02772318]
[1737942759750,5.74666865,237.78,237.65,0.02772318]
[1737942760247,0.02726065,237.74,237.65,0.02772318]
[1737942760644,0.02726065,237.74,237.65,4.23772318]
[1737942760949,0.02726065,237.74,237.65,0.02772318]
[1737942761148,4.23596065,237.74,237.66,4.2099]
[1737942761349,26.55465665,237.73,237.65,0.02772318]
[1737942761955,4.2099,237.67,237.65,0.02772318]
[1737942762248,4.2099,237.67,237.52,26.55465665]
[1737942762249,26.55465665,237.73,237.52,26.55465665]
[1737942762650,4.21,237.66,237.54,4.212]
[1737942762950,22.94203056,237.72,237.52,26.55465665]
[1737942763352,0.02781153,237.64,237.6,0.02710566]
[1737942765350,0.02781153,237.64,237.61,4.2108]
[1737942765953,0.02781153,237.64,237.6,0.02710566]
[1737942766551,0.02781153,237.64,237.62,26.55465665]
[1737942766754,22.94203056,237.71,237.62,23.69467377]
[1737942767757,5.74666865,237.74,237.62,23.69467377]
[1737942767955,0.02831768,237.69,237.62,23.69467377]
[1737942768150,0.02831768,237.69,237.66,0.02831608]
[1737942768755,4.2096,237.68,237.66,0.02831608]
[1737942769055,0.02831768,237.69,237.66,0.02831608]
[1737942769856,4.2096,237.68,237.66,0.02831608]
[1737942770057,0.02831768,237.69,237.66,0.02831608]
[1737942770860,4.2098,237.67,237.66,0.02831608]
[1737942771552,0.02831768,237.69,237.54,26.51357273]
[1737942771758,4.2103,237.65,237.54,26.51357273]
[1737942772056,5.74666865,237.72,237.54,26.51357273]
[1737942772249,4.2098,237.67,237.59,4.2112]
[1737942772449,5.74666865,237.72,237.59,4.2112]
[1737942772851,4.2103,237.64,237.54,4.2119]
[1737942773050,26.55465665,237.71,237.49,0.0568]
[1737942773249,5.74666865,237.72,237.49,0.0568]
[1737942774160,0.02658878,237.63,237.58,0.0315897]
[1737942776665,4.2112,237.59,237.58,0.0315897]
[1737942777060,26.58124543,237.63,237.44,26.55465665]
[1737942777265,26.58124543,237.63,237.24,218.55465665]
[1737942777266,26.55465665,237.63,237.4,26.55465665]
[1737942777667,4.1496,237.66,237.4,26.55465665]
[1737942777668,26.55465665,237.59,237.4,26.55465665]
[1737942778062,26.55465665,237.59,237.45,4.2137]
[1737942778262,4.2129,237.5,237.47,0.03017936]
[1737942778567,0.03047581,237.52,237.47,0.03017936]
[1737942779370,4.24297581,237.52,237.47,0.03017936]
[1737942779566,0.03047581,237.52,237.36,26.55465665]
[1737942779766,1.4085,237.51,237.32,26.55465665]
[1737942779966,1.4085,237.51,237.43,4.214]
[1737942780366,1.4085,237.51,237.36,26.55465665]
[1737942780666,27.96315665,237.51,237.32,26.55465665]
[1737942780866,0.03196574,237.46,237.41,0.02749154]
[1737942781061,4.24566574,237.46,237.41,0.02749154]
[1737942781261,0.03196574,237.46,237.41,0.02749154]
[1737942782361,0.03196574,237.46,237.32,4.2158]
[1737942782562,0.03196574,237.46,237.28,26.55465665]
[1737942782766,1.3277,237.5,237.28,26.55465665]
[1737942782964,4.2146,237.4,237.29,4.2164]
[1737942783269,26.55465665,237.43,237.2,26.55465665]
[1737942783471,4.2149,237.39,237.3,0.02971706]
[1737942783666,0.03026919,237.34,237.3,0.02971706]
[1737942783969,0.02987652,237.34,237.3,0.02971706]
[1737942784371,5.74666865,237.46,237.3,26.58437371]
[1737942784765,7.10816865,237.46,237.26,26.55465665]
[1737942784974,26.55465665,237.43,237.22,26.55465665]
[1737942785169,26.55465665,237.43,237.31,4.2161]
[1737942785472,0.02710257,237.39,237.35,0.02770887]
[1737942785670,0.02710257,237.39,237.22,26.55465665]
[1737942785870,0.02710257,237.39,237.26,26.55465665]
[1737942786067,5.74666865,237.37,237.26,26.55465665]
[1737942786270,5.74666865,237.37,237.3,26.55465665]
[1737942786271,7.319e-05,237.35,237.3,26.55465665]
[1737942786470,7.319e-05,237.35,237.34,4.2156]
[1737942786971,26.49032675,237.38,237.34,26.55465665]
[1737942787170,11.50868361,237.38,237.37,4.2151]
[1737942787472,4.52008361,237.38,237.37,4.2151]
[1737942787674,8.361e-05,237.38,237.37,4.2151]
[1737942787874,45.97334922,237.41,237.4,4.2146]
[1737942788275,0.03217527,237.43,237.38,0.03076395]
[1737942788473,0.03217527,237.43,237.34,19.8430349]
[1737942788868,45.97334922,237.57,237.42,26.55465665]
[1737942789073,45.97334922,237.57,237.51,26.55465665]
[1737942789369,45.97334922,237.57,237.47,26.55465665]
[1737942789775,2.6538,237.64,237.43,26.55465665]
[1737942790073,0.03039766,237.54,237.51,26.55465665]
[1737942790372,2.6538,237.64,237.56,4.2117]
[1737942790773,0.03198477,237.62,237.51,26.55465665]
[1737942790967,0.03198477,237.62,237.58,0.03152942]
[1737942792370,0.03198477,237.62,237.6,4.211]
[1737942792775,0.03198477,237.62,237.58,0.03152942]
[1737942793876,0.03198477,237.62,237.45,26.55465665]
[1737942794175,4.2099,237.67,237.49,26.55465665]
[1737942794371,26.55465665,237.71,237.49,26.55465665]
[1737942794576,2.6173,237.73,237.53,26.55465665]
[1737942794773,4.2089,237.72,237.53,26.55465665]
[1737942794975,0.03212339,237.65,237.61,0.02911727]
[1737942796578,0.03212339,237.65,237.62,4.2107]
[1737942796878,0.03212339,237.65,237.61,0.02911727]
[1737942803082,0.03212339,237.65,237.62,4.2107]
[1737942804181,0.03212339,237.65,237.61,0.02911727]
[1737942804387,0.03212339,237.65,237.61,26.58377392]
[1737942804884,1.2839,237.82,237.61,26.58377392]
[1737942805085,4.0936,237.82,237.61,26.55465665]
[1737942805287,4.0936,237.82,237.71,4.209]
[1737942805688,4.0936,237.82,237.65,26.55465665]
[1737942805981,4.0936,237.82,237.61,26.55465665]
[1737942806281,0.02681009,237.76,237.57,26.55465665]
[1737942806484,0.02681009,237.76,237.69,0.02938143]
[1737942806784,0.03224757,237.75,237.57,26.55465665]
[1737942807086,26.55465665,237.79,237.59,4.2111]
[1737942807286,0.03051679,237.68,237.64,0.03047923]
[1737942807480,26.55465665,237.79,237.57,26.55465665]
[1737942807683,0.02705145,237.68,237.64,0.02958546]
[1737942807885,26.55465665,237.79,237.57,26.55465665]
[1737942808082,0.03012274,237.65,237.64,0.02678902]
[1737942808285,4.0936,237.82,237.61,26.55465665]
[1737942808487,0.03083036,237.67,237.62,0.02805378]
[1737942808782,26.55465665,237.79,237.57,26.55465665]
[1737942808987,0.02976349,237.67,237.62,0.02975779]
[1737942809284,0.02976349,237.67,237.57,26.55465665]
[1737942809285,26.55465665,237.79,237.57,26.55465665]
[1737942809486,0.0267543,237.67,237.63,4.2104]
[1737942809691,4.2093,237.7,237.63,4.2104]
[1737942809892,0.02867359,237.67,237.63,0.02984225]
[1737942810093,4.2099,237.67,237.59,4.2111]
[1737942810293,4.23880062,237.67,237.63,0.02718482]
[1737942810594,0.02890062,237.67,237.63,0.02718482]
[1737942811289,0.02890062,237.67,237.5,0.0888]
[1737942811484,4.2101,237.66,237.54,26.55465665]
[1737942811690,26.55465665,237.75,237.58,4.2112]
[1737942812491,0.03181239,237.69,237.5,26.64345665]
[1737942812691,1.2999,237.7,237.5,26.64345665]
[1737942813093,4.2109,237.61,237.55,4.2119]
[1737942813290,2.7319,237.69,237.5,26.64345665]
[1737942813593,26.55465665,237.67,237.52,4.2124]
[1737942813787,0.02782689,237.62,237.57,0.02825318]
[1737942814390,4.2114,237.59,237.57,0.02825318]
[1737942814888,0.02782689,237.62,237.42,26.55465665]
[1737942815093,30.37465665,237.67,237.42,26.55465665]
[1737942815287,30.37465665,237.67,237.48,4.213]
[1737942815484,30.37465665,237.67,237.42,26.55465665]
[1737942815886,4.2116,237.57,237.46,26.55465665]
[1737942816094,4.24392456,237.57,237.52,0.02806105]
[1737942816790,4.2118,237.56,237.52,0.02806105]
[1737942816989,0.03232456,237.57,237.52,0.02806105]
[1737942817591,0.03232456,237.57,237.39,0.0561]
[1737942817799,1.3643,237.58,237.35,0.0613]
[1737942818297,4.2129,237.5,237.43,4.214]
[1737942818694,1.3643,237.58,237.43,4.214]
[1737942818997,0.02727489,237.49,237.44,0.02679656]
[1737942819896,0.02727489,237.49,237.48,4.2131]
[1737942820495,0.02727489,237.49,237.44,0.02679656]
[1737942821400,1.3643,237.58,237.45,26.55465665]
[1737942822099,26.55465665,237.67,237.45,26.55465665]
[1737942822401,1.2876,237.66,237.49,26.55465665]
[1737942822593,0.02696883,237.58,237.54,0.03104676]
[1737942824297,4.2117,237.56,237.54,0.03104676]
[1737942824499,0.02696883,237.58,237.54,0.03104676]
[1737942825601,0.02696883,237.58,237.39,0.0569]
[1737942825901,26.55465665,237.62,237.39,0.0569]
[1737942826793,0.0310779,237.53,237.48,0.02551331]
[1737942828400,0.0310779,237.53,237.52,4.2124]
[1737942828898,0.0310779,237.53,237.48,0.02551331]
[1737942829501,0.0310779,237.53,237.52,4.2124]
[1737942831299,1.2876,237.66,237.5,20.22463342]
[1737942831503,26.55465665,237.76,237.55,26.55465665]
[1737942831697,1.4159,237.71,237.55,26.55465665]
[1737942832299,4.2102,237.65,237.55,26.55465665]
[1737942832500,0.03231122,237.64,237.6,0.02979829]
[1737942833106,4.2109,237.61,237.6,0.02979829]
[1737942835202,0.03231122,237.64,237.6,0.02979829]
[1737942835407,0.03231122,237.64,237.6,4.24079829]
[1737942835705,0.03231122,237.64,237.6,0.02979829]
[1737942837210,0.03231122,237.64,237.6,4.24079829]
[1737942837807,0.03231122,237.64,237.6,0.02979829]
[1737942838510,4.2106,237.63,237.6,0.02979829]
[1737942839006,4.2113,237.61,237.6,0.02979829]
[1737942839213,0.03231122,237.64,237.5,16.33256334]
[1737942839511,16.33256334,237.72,237.5,16.33256334]
[1737942839710,16.33256334,237.68,237.46,16.33256334]
[1737942840207,0.03221746,237.59,237.43,0.0622]
[1737942840408,0.03221746,237.59,237.55,0.02679292]
[1737942840710,0.0273575,237.59,237.48,0.02679292]
[1737942840909,0.0273575,237.59,237.37,0.0622]
[1737942841110,16.33256334,237.6,237.51,0.02679292]
[1737942841311,4.2126,237.53,237.4,16.33256334]
[1737942841707,4.2126,237.53,237.44,0.02679292]
[1737942841910,0.03179348,237.49,237.44,0.02679292]
[1737942842601,4.24509348,237.49,237.44,0.02679292]
[1737942842806,0.03179348,237.49,237.44,0.02679292]
[1737942843206,4.2134,237.48,237.44,0.02679292]
[1737942843510,0.03179348,237.49,237.44,0.02679292]
[1737942843701,4.2139,237.45,237.44,0.02679292]
[1737942843902,0.03179348,237.49,237.32,16.33256334]
[1737942844107,1.3382,237.48,237.32,16.33256334]
[1737942844305,4.2147,237.41,237.32,16.33256334]
[1737942844515,17.67076334,237.48,237.28,16.33256334]
[1737942844709,21.47076334,237.48,237.24,16.33256334]
[1737942844910,16.33256334,237.44,237.25,4.2173]
[1737942845108,16.33256334,237.44,237.24,16.33256334]
[1737942845306,0.03051261,237.38,237.24,16.33256334]
[1737942846506,0.03051261,237.38,237.25,26.59658944]
[1737942846811,0.03051261,237.38,237.31,4.2164]
[1737942846812,4.2152,237.38,237.31,4.2164]
[1737942847012,0.03044732,237.34,237.25,26.59658944]
[1737942847910,0.03044732,237.34,237.31,4.2163]
[1737942848110,0.03044732,237.34,237.25,26.59658944]
[1737942848313,0.03044732,237.34,237.24,4.2175]
[1737942848912,0.02696186,237.31,237.24,4.2175]
[1737942850411,0.02696186,237.31,237.25,4.2174]
[1737942850610,0.02696186,237.31,237.17,26.78298944]
[1737942850910,0.02696186,237.31,237.25,4.2175]
[1737942851110,4.24336186,237.31,237.25,4.2175]
[1737942851713,4.2166,237.3,237.17,26.78298944]
[1737942851908,4.2166,237.3,237.17,26.59658944]
[1737942852105,1.412e-05,237.26,237.21,26.59658944]
[1737942852306,2.7273,237.38,237.25,26.59658944]
[1737942852709,6.9425,237.38,237.28,4.2168]
[1737942853006,6.9425,237.38,237.25,26.59658944]
[1737942853405,0.02746871,237.34,237.29,0.02938779]
[1737942853814,1.3382,237.48,237.33,26.59658944]
[1737942854115,68.96002383,237.59,237.45,26.59658944]
[1737942854309,3.44541573,237.53,237.49,26.59658944]
[1737942854613,68.96002383,237.59,237.49,26.59658944]
[1737942854811,68.96002383,237.59,237.45,26.59658944]
[1737942855111,0.0274542,237.55,237.5,0.02882885]
[1737942855904,4.2124,237.54,237.5,0.02882885]
[1737942856104,0.0274542,237.55,237.5,0.02882885]
[1737942857717,4.2123,237.54,237.5,0.02882885]
[1737942857913,0.0274542,237.55,237.5,0.02882885]
[1737942859520,0.0274542,237.55,237.5,4.24162885]
[1737942859718,0.0274542,237.55,237.5,0.02882885]
[1737942863223,26.59658944,237.75,237.53,26.59658944]
[1737942863424,2.6358,237.7,237.53,26.59658944]
[1737942863630,4.2106,237.64,237.55,4.2121]
[1737942863925,2.6358,237.7,237.49,26.59658944]
[1737942864126,4.2106,237.64,237.52,4.2126]
[1737942864425,0.03079442,237.6,237.56,0.03176484]
[1737942864620,2.6358,237.7,237.56,0.03176484]
[1737942864816,0.02791124,237.6,237.56,0.03176484]
[1737942865020,2.6358,237.7,237.56,0.03176484]
[1737942865220,0.03185258,237.6,237.56,0.03176484]
[1737942865525,2.6358,237.7,237.56,0.03176484]
[1737942865723,0.02699444,237.6,237.56,0.03176484]
[1737942865925,2.6358,237.7,237.56,0.03176484]
[1737942866127,0.02852389,237.6,237.56,0.03176484]
[1737942866321,0.02776511,237.6,237.58,4.2115]
[1737942866625,0.02776511,237.6,237.56,0.03176484]
[1737942867627,2.6358,237.7,237.57,26.59658944]
[1737942868025,4.2102,237.67,237.59,4.2113]
[1737942868224,2.6358,237.7,237.57,26.59658944]
[1737942868721,2.6358,237.7,237.53,16.32216863]
[1737942869024,0.03169575,237.66,237.61,0.02838921]
[1737942870127,4.2108,237.63,237.61,0.02838921]
[1737942870520,0.03169575,237.66,237.61,0.02838921]
[1737942870828,4.2109,237.62,237.61,0.02838921]
[1737942871330,4.2105,237.65,237.61,0.02838921]
[1737942871532,0.03169575,237.66,237.61,0.02838921]
[1737942871829,4.2109,237.63,237.61,0.02838921]
[1737942872029,0.03169575,237.66,237.61,0.02838921]
[1737942872431,0.03169575,237.66,237.49,16.32216863]
[1737942872632,16.32216863,237.67,237.45,16.32216863]
[1737942872838,4.2112,237.61,237.45,16.32216863]
[1737942873027,16.32216863,237.67,237.45,16.32216863]
[1737942873724,0.03155687,237.58,237.54,0.02720343]
[1737942874135,16.32216863,237.67,237.54,0.02720343]
[1737942874335,0.03077955,237.58,237.54,0.02720343]
[1737942874535,16.32216863,237.67,237.54,0.02720343]
[1737942874730,0.03229215,237.58,237.54,0.02720343]
[1737942874933,4.2119,237.57,237.54,0.02720343]
[1737942876333,4.212,237.56,237.54,0.02720343]
[1737942877229,4.2121,237.55,237.54,0.02720343]
[1737942878836,4.2132,237.49,237.4,16.32216863]
[1737942879536,4.213,237.5,237.44,4.2139]
[1737942879836,2.7288,237.57,237.36,16.32216863]
[1737942879837,16.32216863,237.55,237.36,16.32216863]
[1737942880032,16.32216863,237.55,237.31,0.1746]
[1737942880033,0.0283307,237.49,237.45,0.02925392]
[1737942880735,4.2137,237.46,237.45,0.02925392]
[1737942881237,0.0283307,237.49,237.45,0.02925392]
[1737942881530,4.2134,237.48,237.45,0.02925392]
[1737942882230,0.0283307,237.49,237.45,0.02925392]
[1737942882433,4.2136,237.47,237.45,0.02925392]
[1737942883040,4.2137,237.46,237.45,0.02925392]
[1737942884640,4.2141,237.44,237.38,4.2151]
[1737942885043,2.7288,237.57,237.38,4.2151]
[1737942885243,4.2142,237.44,237.38,4.2151]
[1737942885744,0.02895589,237.43,237.39,0.02784146]
[1737942886135,4.24325589,237.43,237.39,0.02784146]
[1737942886445,5.589e-05,237.43,237.42,4.2144]
[1737942886640,4.2125,237.53,237.4,16.32216863]
[1737942886846,2.7288,237.57,237.44,16.32216863]
[1737942887043,2.7288,237.57,237.49,4.213]
[1737942887239,4.2126,237.53,237.49,4.213]
[1737942887438,2.7288,237.57,237.4,16.32216863]
[1737942887841,4.23971403,237.51,237.46,0.02707227]
[1737942889151,4.23971403,237.51,237.46,4.24077227]
[1737942890149,0.02681403,237.51,237.5,4.213]
[1737942891254,0.02681403,237.51,237.46,0.02707227]
[1737942891654,4.23961403,237.51,237.47,4.2135]
[1737942892554,0.02681403,237.51,237.48,4.2133]
[1737942893251,16.32216863,237.49,237.28,16.32216863]
[1737942893460,16.32216863,237.43,237.24,16.32216863]
[1737942893656,16.32216863,237.43,237.23,1.3713]
[1737942894358,4.2153,237.37,237.27,4.2171]
[1737942894558,0.02865179,237.35,237.31,0.02671027]
[1737942894960,4.2161,237.33,237.31,0.02671027]
[1737942896256,0.02865179,237.35,237.23,1.3713]
[1737942896257,4.24445179,237.35,237.23,1.3713]
[1737942897363,4.2161,237.33,237.27,4.2171]
[1737942897559,4.2161,237.33,237.23,1.3713]
[1737942897766,4.24455179,237.35,237.28,4.2169]
[1737942898060,0.02865179,237.35,237.28,4.2169]
[1737942898964,4.2161,237.33,237.21,1.3865]
[1737942899257,16.32216863,237.39,237.15,17.70466863]
[1737942899561,0.03097594,237.3,237.15,17.70466863]
[1737942899756,16.32216863,237.39,237.15,17.70466863]
[1737942899954,0.03161709,237.25,237.21,4.2181]
[1737942900163,16.32216863,237.35,237.21,4.2181]
[1737942900362,0.03203499,237.25,237.22,4.2178]
[1737942900657,16.32216863,237.35,237.22,4.2178]
[1737942901064,0.02763763,237.31,237.15,17.70466863]
[1737942901266,16.32216863,237.35,237.15,17.70466863]
[1737942901456,0.03193474,237.25,237.17,4.2189]
[1737942901763,16.32216863,237.27,237.07,17.63116863]
[1737942901963,16.28993173,237.27,237.07,17.63116863]
[1737942902367,4.2182,237.21,237.16,4.219]
[1737942902660,16.28993173,237.27,237.07,17.63116863]
[1737942903059,16.28993173,237.27,237.07,1.309]
[1737942903264,0.02793939,237.19,237.15,0.02891108]
[1737942903656,4.24663939,237.19,237.15,0.02891108]
[1737942903860,0.02793939,237.19,237.15,0.02891108]
[1737942905167,4.2189,237.18,237.15,0.02891108]
[1737942907066,0.02793939,237.19,237.15,0.02891108]
[1737942907268,1.3786,237.18,236.99,16.32216863]
[1737942907466,16.32216863,237.15,236.98,1.3592]
[1737942907962,4.2202,237.1,236.98,1.3592]
[1737942908564,16.32216863,237.15,236.95,16.32216863]
[1737942908565,0.0284982,237.06,236.95,16.32216863]
[1737942908965,0.0284982,237.06,236.94,1.3908]
[1737942909268,0.0284982,237.06,236.91,16.32216863]
[1737942909472,16.32216863,237.15,236.95,16.32216863]
[1737942909670,5.003e-05,237.01,236.96,4.2225]
[1737942909866,16.32216863,237.15,236.91,16.32216863]
[1737942910267,4.2213,237.04,236.98,4.2222]
[1737942910765,4.2213,237.04,236.91,16.32216863]
[1737942910966,0.03089706,237.03,236.99,0.03206081]
[1737942912966,0.03089706,237.03,237.02,4.2215]
[1737942913370,2.6328,237.17,237.02,16.32216863]
[1737942913966,2.6328,237.17,237.03,1.3598]
[1737942914165,2.6328,237.17,237.13,4.2195]
[1737942914365,2.6328,237.17,237.03,1.3598]
[1737942914664,2.66516174,237.17,236.98,16.32216863]
[1737942914864,16.32216863,237.15,236.93,1.428]
[1737942915668,4.2205,237.08,236.93,1.428]
[1737942915871,0.02753693,237.06,237.02,0.03011615]
[1737942916073,4.2203,237.1,237.04,4.2212]
[1737942916573,0.02906339,237.11,237.05,0.02946372]
[1737942917376,4.2203,237.09,237.05,0.02946372]
[1737942918078,4.2201,237.1,237.05,0.02946372]
[1737942918974,4.2201,237.1,236.94,1.3702]
[1737942919173,2.6328,237.17,236.95,16.32216863]
[1737942919678,4.22,237.11,237.06,4.2208]
[1737942919878,16.32216863,237.15,236.95,16.32216863]
[1737942920078,16.32216863,237.15,236.94,1.3702]
[1737942920279,0.03188669,237.07,237.02,4.2215]
[1737942920583,0.03188669,237.07,236.94,1.3702]
[1737942921178,0.03188669,237.07,236.98,16.32216863]
[1737942921380,0.03188669,237.07,237.06,4.2208]
[1737942922376,1.3786,237.18,237.06,16.32216863]
[1737942922575,16.32216863,237.27,237.06,16.32216863]
[1737942922576,2.7789,237.26,237.17,4.2189]
[1737942922882,4.218,237.22,237.17,4.2189]
[1737942923681,4.24846565,237.22,237.17,4.24957729]
[1737942924278,4.2185,237.2,237.17,0.03067729]
[1737942924482,0.03046565,237.22,237.17,0.03067729]
[1737942924983,4.24856565,237.22,237.17,0.03067729]
[1737942925183,0.03046565,237.22,237.17,0.03067729]
[1737942925380,4.2187,237.18,237.17,0.03067729]
[1737942925679,0.03046565,237.22,237.04,1.3053]
[1737942925873,16.32216863,237.23,237.04,1.3053]
[1737942926281,4.2193,237.15,237.08,4.2203]
[1737942926482,16.32216863,237.19,236.98,16.32216863]
[1737942926884,0.02953948,237.11,237.06,4.2208]
[1737942927580,0.02953948,237.11,236.98,16.32216863]
[1737942927873,0.02953948,237.11,236.95,1.3361]
[1737942928077,16.32216863,237.15,236.94,16.32216863]
[1737942928277,0.02815838,237.05,236.89,2.9763]
[1737942928474,2.639,237.14,236.89,2.9763]
[1737942928678,0.03140454,236.99,236.97,4.2224]
[1737942928882,4.2213,237.04,236.89,2.9763]
[1737942929181,0.03092256,237.0,236.89,2.9763]
[1737942929983,0.03092256,237.0,236.99,4.2221]
[1737942931778,2.256e-05,237.0,236.99,4.2221]
[1737942931985,1.3087,237.13,236.97,16.32216863]
[1737942932281,10.9213002,237.2,237.03,16.32216863]
[1737942932584,8.5234002,237.2,237.03,16.32216863]
[1737942933087,0.03115522,237.14,237.09,0.02986781]
[1737942933586,0.03115522,237.14,236.99,16.32216863]
[1737942933781,16.32216863,237.19,236.95,16.32216863]
[1737942934286,6.9872,237.2,237.14,4.2194]
[1737942934481,2.7688,237.2,237.03,16.32216863]
[1737942934686,0.03042363,237.19,237.07,16.32216863]
[1737942934882,16.32216863,237.14,236.95,16.32216863]
[1737942935086,16.32216863,237.14,236.92,1.3731]
[1737942935584,4.24866054,237.05,236.92,1.3731]
[1737942935784,0.02766054,237.05,236.92,1.3731]
[1737942936682,0.02766054,237.05,237.0,4.2218]
[1737942937988,0.02766054,237.05,237.04,4.2212]
[1737942939888,0.02766054,237.05,236.95,16.32216863]
[1737942940083,0.02766054,237.05,236.93,1.3145]
[1737942940491,0.02766054,237.05,236.92,1.3731]
[1737942941688,4.2216,237.02,236.92,1.3731]
[1737942942194,0.02994707,236.99,236.87,16.32216863]
[1737942943087,0.02994707,236.99,236.85,1.4074]
[1737942943789,4.2223,236.98,236.91,4.2235]
[1737942943992,4.2223,236.98,236.85,1.4074]
[1737942944591,0.03035346,236.94,236.85,1.4074]
[1737942945591,0.03035346,236.94,236.83,16.32216863]
[1737942945797,0.03035346,236.94,236.92,4.2234]
[1737942946390,0.03035346,236.94,236.81,2.7415]
[1737942946585,0.03035346,236.94,236.89,4.2238]
[1737942946792,0.03035346,236.94,236.81,2.7415]
[1737942947093,4.2232,236.93,236.88,4.224]
[1737942947294,16.35252209,236.94,236.79,78.9]
[1737942947495,16.32216863,236.94,236.79,78.9]
[1737942947692,0.02716363,236.89,236.79,78.9]
[1737942948395,0.02716363,236.89,236.86,4.2244]
[1737942948893,0.02716363,236.89,236.72,1.3434]
[1737942949090,1.3562,236.89,236.72,1.3434]
[1737942949290,0.03022257,236.83,236.72,1.3434]
[1737942949491,0.03022257,236.83,236.63,16.32216863]
[1737942949691,16.32216863,236.82,236.66,1.4225]
[1737942949890,0.03168805,236.77,236.66,1.4225]
[1737942950694,0.03168805,236.77,236.63,16.32216863]
[1737942951194,0.03168805,236.77,236.75,4.2263]
[1737942951593,0.03168805,236.77,236.75,2.0815]
[1737942952697,0.03168805,236.77,236.63,16.32216863]
[1737942952898,0.03168805,236.77,236.59,84.63377571]